fUST/lending_fUST_20240902
["ID","MTS","AMOUNT","RATE_DAILY","PERIOD"]
[336990968,1725289847792,-151.0,0.00043835,120]
[336990969,1725289847809,-151.0,0.00043835,120]
[336990970,1725289847818,-500.0,0.00043835,120]
[336990971,1725289847827,-151.0,0.00043835,120]
[336990972,1725289847837,-500.0,0.00043835,120]
[336990973,1725289847849,-500.0,0.00043835,120]
[336990974,1725289847858,-500.0,0.00043835,120]
[336990975,1725289847867,-500.0,0.00043835,120]
[336990976,1725289847878,-500.0,0.00043835,120]
[336990977,1725289847935,-500.0,0.00043835,120]
[336990978,1725289847949,-500.0,0.00043835,120]
[336990979,1725289847959,-500.0,0.00043835,120]
[336990980,1725289847968,-500.0,0.00043835,120]
[336990981,1725289847978,-156.658455,0.00043835,120]
[336990982,1725289847988,-500.0,0.00043835,120]
[336990983,1725289847997,-156.658455,0.00043835,120]
[336990984,1725289848007,-156.658455,0.00043835,120]
[336990985,1725289848016,-522.35068819,0.00043835,120]
[336990986,1725289848026,-156.658455,0.00043835,120]
[336990987,1725289848040,-500.0,0.00043835,120]
[336990988,1725289848056,-156.658455,0.00043835,120]
[336990989,1725289848065,-156.658455,0.00043835,120]
[336990990,1725289848074,-156.658455,0.00043835,120]
[336990991,1725289848085,-156.658455,0.00043835,120]
[336990992,1725289848094,-500.0,0.00043835,120]
[336990993,1725289848104,-500.0,0.00043835,120]
[336990994,1725289848114,-151.0,0.00043835,120]
[336990995,1725289848123,-500.0,0.00043835,120]
[336990996,1725289848133,-500.0,0.00043835,120]
[336990997,1725289848142,-1293.51,0.00043835,120]
[336990998,1725289848151,-500.0,0.00043835,120]
[336990999,1725289848161,-510.7663258,0.00043835,120]
[336991000,1725289848171,-502.87759677,0.00043835,120]
[336991001,1725289848180,-714.25,0.00043835,120]
[336991002,1725289848190,-500.0,0.00043835,120]
[336991003,1725289848200,-500.0,0.00043835,120]
[336991004,1725289848210,-500.0,0.00043835,120]
[336991005,1725289848219,-485.00189727,0.00043835,120]
[336991006,1725289848230,-611.88449323,0.00043835,120]
[336991007,1725289848239,-501.39317515,0.00043835,120]
[336991008,1725289848249,-500.0,0.00043835,120]
[336991009,1725289848259,-500.0,0.00043835,120]
[336991010,1725289848271,-500.0,0.00043835,120]
[336991011,1725289848289,-1249.91,0.00043835,120]
[336991012,1725289848305,-500.0,0.00043835,120]
[336991013,1725289848315,-500.0,0.00043835,120]
[336991014,1725289848325,-500.0,0.00043835,120]
[336991015,1725289848335,-500.0,0.00043835,120]
[336991016,1725289848344,-500.0,0.00043835,120]
[336991017,1725289848354,-500.0,0.00043835,120]
[336991018,1725289848363,-500.0,0.00043835,120]
[336991019,1725289848373,-500.0,0.00043835,120]
[336991020,1725289848382,-500.0,0.00043835,120]
[336991021,1725289848391,-500.0,0.00043835,120]
[336991022,1725289848401,-500.0,0.00043835,120]
[336991023,1725289848409,-469.76081487,0.00043835,120]
[336991024,1725289848419,-299.50221561,0.00043835,120]
[336991025,1725289848428,-500.0,0.00043835,120]
[336991026,1725289848438,-500.0,0.00043835,120]
[336991027,1725289848448,-820.43,0.00043835,120]
[336991028,1725289848457,-500.0,0.00043835,120]
[336991029,1725289848467,-3744.11,0.00043835,120]
[336991030,1725289848477,-500.0,0.00043835,120]
[336991031,1725289848487,-503.04928506,0.00043835,120]
[336991032,1725289848497,-500.0,0.00043835,120]
[336991033,1725289848506,-500.0,0.00043835,120]
[336991034,1725289848516,-550.79,0.00043835,120]
[336991035,1725289848526,-500.0,0.00043835,120]
[336991036,1725289848536,-500.0,0.00043835,120]
[336991037,1725289848546,-500.0,0.00043835,120]
[336991038,1725289848561,-500.0,0.00043835,120]
[336991039,1725289848570,-500.0,0.00043835,120]
[336991040,1725289848582,-500.0,0.00043835,120]
[336991041,1725289848593,-500.0,0.00043835,120]
[336991042,1725289848602,-1913.8,0.00043835,120]
[336991043,1725289848612,-500.0,0.00043835,120]
[336991044,1725289848622,-500.0,0.00043835,120]
[336991045,1725289848633,-500.0,0.00043835,120]
[336991046,1725289848643,-500.0,0.00043835,21]
[336991047,1725289848652,-500.0,0.00043835,120]
[336991048,1725289848662,-500.0,0.00043835,120]
[336991049,1725289848671,-500.0,0.00043835,120]
[336991050,1725289848680,-602.66,0.00043835,120]
[336991051,1725289848690,-151.0,0.00043835,120]
[336991052,1725289848700,-500.0,0.00043835,120]
[336991053,1725289848710,-151.0,0.00043835,120]
[336991054,1725289848720,-973.59,0.00043835,120]
[336991055,1725289848730,-151.0,0.00043835,120]
[336991056,1725289848742,-151.0,0.00043835,120]
[336991057,1725289848752,-151.0,0.00043835,120]
[336991058,1725289848762,-151.0,0.00043835,120]
[336991059,1725289848772,-500.0,0.00043835,120]
[336991060,1725289848783,-500.0,0.00043835,120]
[336991061,1725289848794,-151.0,0.00043835,120]
[336991062,1725289848804,-500.0,0.00043835,120]
[336991063,1725289848814,-151.0,0.00043835,120]
[336991064,1725289848824,-151.0,0.00043835,120]
[336991065,1725289848835,-151.0,0.00043835,120]
[336991066,1725289848845,-151.0,0.00043835,120]
[336991067,1725289848856,-180.49762,0.00043835,120]
[336991068,1725289848866,-500.0,0.00043835,120]
[336991069,1725289848876,-502.06547682,0.00043835,120]
[336991070,1725289848886,-151.0,0.00043835,120]
[336991071,1725289848896,-782.01,0.00043835,120]
[336991072,1725289848907,-502.77470919,0.00043835,120]
[336991073,1725289848918,-500.0,0.00043835,120]
[336991074,1725289848929,-500.0,0.00043835,120]
[336991075,1725289848939,-808.21,0.00043835,120]
[336991076,1725289848951,-151.0,0.00043835,120]
[336991077,1725289848961,-500.0,0.00043835,120]
[336991078,1725289848971,-501.15176496,0.00043835,120]
[336991079,1725289848982,-523.45507545,0.00043835,120]
[336991080,1725289848991,-500.0,0.00043835,120]
[336991081,1725289849002,-502.40806551,0.00043835,120]
[336991082,1725289849011,-2356.58,0.00043835,120]
[336991083,1725289849022,-500.0,0.00043835,120]
[336991084,1725289849032,-500.0,0.00043835,120]
[336991085,1725289849045,-500.0,0.00043835,120]
[336991086,1725289849056,-502.30849553,0.00043835,120]
[336991087,1725289849066,-500.0,0.00043835,120]
[336991088,1725289849075,-500.0,0.00043835,120]
[336991089,1725289849086,-500.0,0.00043835,120]
[336991090,1725289849096,-500.0,0.00043835,120]
[336991091,1725289849105,-151.0,0.00043835,120]
[336991092,1725289849115,-151.0,0.00043835,120]
[336991093,1725289849124,-151.0,0.00043835,120]
[336991094,1725289849134,-151.0,0.00043835,120]
[336991095,1725289849144,-500.0,0.00043835,120]
[336991096,1725289849154,-151.0,0.00043835,120]
[336991097,1725289849164,-151.0,0.00043835,120]
[336991098,1725289849174,-151.0,0.00043835,120]
[336991099,1725289849185,-500.0,0.00043835,120]
[336991100,1725289849195,-733.99,0.00043835,120]
[336991101,1725289849206,-500.0,0.00043835,30]
[336991102,1725289849217,-685.49,0.00043835,120]
[336991103,1725289849227,-500.0,0.00043835,120]
[336991104,1725289849237,-500.0,0.00043835,120]
[336991105,1725289849249,-500.0,0.00043835,120]
[336991106,1725289849258,-562.62,0.00043835,120]
[336991107,1725289849269,-500.0,0.00043835,120]
[336991108,1725289849279,-500.0,0.00043835,120]
[336991109,1725289849290,-500.0,0.00043835,2]
[336991110,1725289849301,-661.37,0.00043835,120]
[336991111,1725289849310,-500.0,0.00043835,120]
[336991112,1725289849320,-571.45,0.00043835,120]
[336991113,1725289849330,-500.92979144,0.00043835,120]
[336991114,1725289849340,-500.0,0.00043835,120]
[336991115,1725289849350,-500.0,0.00043835,120]
[336991116,1725289849360,-500.0,0.00043835,120]
[336991117,1725289849370,-500.0,0.00043835,120]
[336991118,1725289849380,-500.0,0.00043835,120]
[336991119,1725289849390,-500.0,0.00043835,120]
[336991120,1725289849400,-1000.0,0.00043835,28]
[336991121,1725289849411,-500.0,0.00043835,120]
[336991122,1725289849421,-1000.0,0.00043835,28]
[336991123,1725289849430,-500.0,0.00043835,120]
[336991124,1725289849440,-1000.0,0.00043835,28]
[336991125,1725289849451,-755.27,0.00043835,120]
[336991126,1725289849460,-1000.0,0.00043835,28]
[336991127,1725289849471,-755.27,0.00043835,120]
[336991128,1725289849481,-1000.0,0.00043835,28]
[336991129,1725289849491,-755.27,0.00043835,120]
[336991130,1725289849501,-500.0,0.00043835,120]
[336991131,1725289849511,-1000.0,0.00043835,28]
[336991132,1725289849522,-755.27,0.00043835,120]
[336991133,1725289849532,-1000.0,0.00043835,28]
[336991134,1725289849544,-755.27,0.00043835,120]
[336991135,1725289849555,-500.0,0.00043835,120]
[336991136,1725289849569,-1000.0,0.00043835,28]
[336991137,1725289849580,-961.63,0.00043835,120]
[336991138,1725289849589,-500.0,0.00043835,120]
[336991139,1725289849599,-755.27,0.00043835,120]
[336991140,1725289849612,-500.0,0.00043835,120]
[336991141,1725289849622,-1000.0,0.00043835,28]
[336991142,1725289849632,-755.27,0.00043835,120]
[336991143,1725289849644,-1000.0,0.00043835,28]
[336991144,1725289849653,-755.27,0.00043835,120]
[336991145,1725289849664,-1000.0,0.00043835,28]
[336991146,1725289849673,-1000.0,0.00043835,28]
[336991147,1725289849683,-1000.0,0.00043835,28]
[336991148,1725289849693,-1000.0,0.00043835,28]
[336991149,1725289849705,-500.0,0.00043835,120]
[336991150,1725289849714,-1000.0,0.00043835,28]
[336991151,1725289849724,-1000.0,0.00043835,28]
[336991152,1725289849734,-1000.0,0.00043835,28]
[336991153,1725289849745,-570.08439855,0.00043835,120]
[336991154,1725289849755,-500.0,0.00043835,120]
[336991155,1725289849765,-1000.0,0.00043835,28]
[336991156,1725289849775,-1000.0,0.00043835,28]
[336991157,1725289849785,-1000.0,0.00043835,28]
[336991158,1725289849795,-1000.0,0.00043835,28]
[336991159,1725289849805,-503.45385978,0.00043835,120]
[336991160,1725289849815,-1000.0,0.00043835,28]
[336991161,1725289849824,-1000.0,0.00043835,28]
[336991162,1725289849834,-1000.0,0.00043835,28]
[336991163,1725289849844,-1000.0,0.00043835,28]
[336991164,1725289849854,-1000.0,0.00043835,28]
[336991165,1725289849864,-500.0,0.00043835,120]
[336991166,1725289849874,-1000.0,0.00043835,28]
[336991167,1725289849885,-500.0,0.00043835,120]
[336991168,1725289849895,-1000.0,0.00043835,28]
[336991169,1725289849905,-500.0,0.00043835,120]
[336991170,1725289849914,-500.0,0.00043835,120]
[336991171,1725289849924,-1000.0,0.00043835,28]
[336991172,1725289849933,-1000.0,0.00043835,28]
[336991173,1725289849943,-500.0,0.00043835,120]
[336991174,1725289849953,-1000.0,0.00043835,28]
[336991175,1725289849963,-500.0,0.00043835,120]
[336991176,1725289849972,-500.0,0.00043835,120]
[336991177,1725289849982,-1000.0,0.00043835,28]
[336991178,1725289849991,-1000.0,0.00043835,28]
[336991179,1725289850001,-1000.0,0.00043835,28]
[336991180,1725289850010,-1000.0,0.00043835,28]
[336991181,1725289850022,-1000.0,0.00043835,28]
[336991182,1725289850032,-500.0,0.00043835,120]
[336991183,1725289850043,-1000.0,0.00043835,28]
[336991184,1725289850052,-1000.0,0.00043835,28]
[336991185,1725289850063,-1000.0,0.00043835,28]
[336991186,1725289850073,-500.0,0.00043835,120]
[336991187,1725289850082,-1000.0,0.00043835,28]
[336991188,1725289850092,-1000.0,0.00043835,28]
[336991189,1725289850102,-1000.0,0.00043835,28]
[336991190,1725289850111,-6001.3,0.00043835,120]
[336991191,1725289850195,-1000.0,0.00043835,28]
[336991192,1725289850214,-1000.0,0.00043835,28]
[336991193,1725289850230,-500.0,0.00043835,120]
[336991194,1725289850240,-500.0,0.00043835,120]
[336991195,1725289850250,-1000.0,0.00043835,28]
[336991196,1725289850259,-1000.0,0.00043835,28]
[336991197,1725289850269,-500.0,0.00043835,120]
[336991198,1725289850279,-1000.0,0.00043835,28]
[336991199,1725289850288,-1000.0,0.00043835,28]
[336991200,1725289850298,-1000.0,0.00043835,28]
[336991201,1725289850307,-528.49702242,0.00043835,120]
[336991202,1725289850317,-1000.0,0.00043835,28]
[336991203,1725289850326,-1000.0,0.00043835,28]
[336991204,1725289850336,-1000.0,0.00043835,28]
[336991205,1725289850345,-1000.0,0.00043835,28]
[336991206,1725289850355,-425.780318,0.00043835,28]
[336991207,1725289850365,-500.0,0.00043835,120]
[336991208,1725289850375,-500.0,0.00043835,120]
[336991209,1725289850384,-500.0,0.00043835,120]
[336991210,1725289850394,-500.0,0.00043835,120]
[336991211,1725289850404,-500.0,0.00043835,120]
[336991212,1725289850414,-500.0,0.00043835,120]
[336991213,1725289850424,-500.0,0.00043835,120]
[336991214,1725289850433,-500.0,0.00043835,120]
[336991215,1725289850443,-500.0,0.00043835,10]
[336991216,1725289850452,-500.0,0.00043835,120]
[336991217,1725289850462,-500.0,0.00043835,120]
[336991218,1725289850472,-500.0,0.00043835,120]
[336991219,1725289850482,-501.5864036,0.00043835,120]
[336991220,1725289850491,-630.4,0.00043835,120]
[336991221,1725289850501,-500.0,0.00043835,120]
[336991222,1725289850510,-500.0,0.00043835,120]
[336991223,1725289850520,-981.01,0.00043835,120]
[336991224,1725289850530,-500.0,0.00043835,120]
[336991225,1725289850542,-500.0,0.00043835,120]
[336991226,1725289850552,-500.0,0.00043835,120]
[336991227,1725289850565,-500.0,0.00043835,120]
[336991228,1725289850575,-500.0,0.00043835,120]
[336991229,1725289850584,-500.0,0.00043835,120]
[336991230,1725289850593,-500.0,0.00043835,120]
[336991231,1725289850603,-500.0,0.00043835,120]
[336991232,1725289850612,-500.0,0.00043835,120]
[336991233,1725289850622,-520.83,0.00043835,120]
[336991234,1725289850631,-500.0,0.00043835,120]
[336991235,1725289850641,-500.0,0.00043835,120]
[336991236,1725289850653,-500.0,0.00043835,120]
[336991237,1725289850662,-3579.81,0.00043835,120]
[336991238,1725289850675,-665.04,0.00043835,120]
[336991239,1725289850688,-500.0,0.00043835,120]
[336991240,1725289850698,-527.96210237,0.00043835,120]
[336991241,1725289850707,-500.0,0.00043835,120]
[336991242,1725289850717,-773.44,0.00043835,120]
[336991243,1725289850726,-500.0,0.00043835,120]
[336991244,1725289850736,-600.21083165,0.00043835,120]
[336991245,1725289850746,-500.0,0.00043835,120]
[336991246,1725289850756,-500.0,0.00043835,120]
[336991247,1725289850765,-500.0,0.00043835,120]
[336991248,1725289850774,-500.0,0.00043835,120]
[336991249,1725289850784,-500.0,0.00043835,120]
[336991250,1725289850799,-500.0,0.00043835,120]
[336991251,1725289850808,-536.95610484,0.00043835,120]
[336991252,1725289850818,-501.3557984,0.00043835,120]
[336991253,1725289850827,-796.73,0.00043835,120]
[336991254,1725289850836,-2368.52,0.00043835,120]
[336991255,1725289850847,-500.0,0.00043835,120]
[336991256,1725289850857,-655.45,0.00043835,120]
[336991257,1725289850866,-500.0,0.00043835,120]
[336991258,1725289850875,-500.0,0.00043835,120]
[336991259,1725289850885,-500.0,0.00043835,120]
[336991260,1725289850895,-500.0,0.00043835,120]
[336991261,1725289850905,-500.0,0.00043835,120]
[336991262,1725289850915,-500.0,0.00043835,120]
[336991263,1725289850925,-480.689821,0.00043835,120]
[336991264,1725289850935,-480.689821,0.00043835,120]
[336991265,1725289850945,-500.0,0.00043835,120]
[336991266,1725289850955,-480.689821,0.00043835,120]
[336991267,1725289850966,-480.689821,0.00043835,120]
[336991268,1725289850975,-480.689821,0.00043835,120]
[336991269,1725289850985,-500.0,0.00043835,60]
[336991270,1725289850995,-480.689821,0.00043835,120]
[336991271,1725289851006,-480.689821,0.00043835,120]
[336991272,1725289851016,-151.0,0.00043835,120]
[336991273,1725289851026,-1314.19,0.00043835,120]
[336991274,1725289851036,-151.0,0.00043835,120]
[336991275,1725289851055,-500.0,0.00043835,120]
[336991276,1725289851065,-151.0,0.00043835,120]
[336991277,1725289851074,-480.689821,0.00043835,120]
[336991278,1725289851084,-500.0,0.00043835,120]
[336991279,1725289851094,-151.0,0.00043835,120]
[336991280,1725289851103,-500.0,0.00043835,120]
[336991281,1725289851113,-480.689821,0.00043835,120]
[336991282,1725289851123,-151.0,0.00043835,120]
[336991283,1725289851132,-480.689821,0.00043835,120]
[336991284,1725289851141,-480.689821,0.00043835,120]
[336991285,1725289851151,-480.689821,0.00043835,120]
[336991286,1725289851160,-299.846972,0.00043835,120]
[336991287,1725289851169,-480.689821,0.00043835,120]
[336991288,1725289851178,-480.689821,0.00043835,120]
[336991289,1725289851188,-500.0,0.00043835,120]
[336991290,1725289851203,-502.95684769,0.00043835,120]
[336991291,1725289851217,-309.70892531,0.00043835,120]
[336991292,1725289851231,-500.0,0.00043835,120]
[336991293,1725289851242,-696.09,0.00043835,120]
[336991294,1725289851255,-500.0,0.00043835,120]
[336991295,1725289851268,-520.5658459,0.00043835,120]
[336991296,1725289851282,-500.0,0.00043835,120]
[336991297,1725289851308,-505.22789372,0.00043835,120]
[336991298,1725289851323,-979.89,0.00043835,120]
[336991299,1725289851338,-1354.14,0.00043835,120]
[336991300,1725289851354,-512.69040343,0.00043835,120]
[336991301,1725289851368,-500.0,0.00043835,120]
[336991302,1725289851381,-500.0,0.00043835,120]
[336991303,1725289851395,-500.0,0.00043835,120]
[336991304,1725289851410,-500.0,0.00043835,120]
[336991305,1725289851423,-500.0,0.00043835,120]
[336991306,1725289851433,-500.0,0.00043835,120]
[336991307,1725289851446,-500.0,0.00043835,120]
[336991308,1725289851458,-506.55540199,0.00043835,120]
[336991309,1725289851472,-2663.42,0.00043835,120]
[336991310,1725289851485,-500.0,0.00043835,120]
[336991311,1725289851498,-503.42261088,0.00043835,120]
[336991312,1725289851513,-916.98,0.00043835,120]
[336991313,1725289851529,-500.0,0.00043835,120]
[336991314,1725289851543,-760.52,0.00043835,120]
[336991315,1725289851557,-500.0,0.00043835,2]
[336991316,1725289851568,-500.0,0.00043835,120]
[336991317,1725289851583,-500.0,0.00043835,120]
[336991318,1725289851597,-1522.88,0.00043835,120]
[336991319,1725289851609,-2821.750791,0.00043835,60]
[336991320,1725289851623,-502.47477771,0.00043835,120]
[336991321,1725289851635,-500.0,0.00043835,120]
[336991322,1725289851650,-500.0,0.00043835,120]
[336991323,1725289851662,-500.0,0.00043835,120]
[336991324,1725289851673,-500.0,0.00043835,120]
[336991325,1725289851687,-500.0,0.00043835,120]
[336991326,1725289851701,-2357.57427476,0.00043835,120]
[336991329,1725290187395,5478.35,0.000205,2]
[336991330,1725290277466,170.4758796,0.0001,30]
[336991335,1725290874648,34517.47291685,0.0002,2]
[336991356,1725291032727,-213.846628,0.00023115,2]
[336991357,1725291032738,-213.846628,0.00023178,2]
[336991358,1725291032751,-213.846628,0.00023242,2]
[336991359,1725291032761,-213.846628,0.00023305,2]
[336991360,1725291032771,-213.846628,0.00023368,2]
[336991361,1725291032780,-213.846628,0.00023432,2]
[336991362,1725291032790,-213.846628,0.00023495,2]
[336991363,1725291032799,-213.846628,0.00023559,2]
[336991364,1725291032810,-956.776706,0.00023587,2]
[336991365,1725291032820,-213.846628,0.00023622,2]
[336991366,1725291032829,-251.0,0.00023633,2]
[336991367,1725291032839,-241.0929424,0.00023646,2]
[336991368,1725291032848,-213.846628,0.00023685,2]
[336991369,1725291032858,-300.0,0.00023746,2]
[336991370,1725291032868,-300.0,0.00023746,2]
[336991371,1725291032878,-1090.37213072,0.00023747,2]
[336991381,1725291038583,-22134.88049298,0.00023747,2]
[336991382,1725291038594,-213.846628,0.00023749,2]
[336991384,1725291038605,-213.846628,0.00023812,2]
[336991385,1725291038615,-213.846628,0.00023876,2]
[336991386,1725291038625,-213.846628,0.00023939,2]
[336991387,1725291038635,-213.846628,0.00024002,2]
[336991388,1725291038645,-213.846628,0.00024066,2]
[336991389,1725291038656,-213.846628,0.00024129,2]
[336991390,1725291038667,-213.846628,0.00024192,2]
[336991391,1725291038676,-213.846628,0.00024256,2]
[336991392,1725291038687,-213.846628,0.00024319,2]
[336991393,1725291038698,-3948.77391727,0.0002473,2]
[336991394,1725291038709,-500.0,0.00024999,2]
[336991395,1725291038719,-500.0,0.00024999,2]
[336991396,1725291038728,-500.0,0.00024999,2]
[336991397,1725291038738,-830.09644229,0.00024999,2]
[336991398,1725291038750,-500.0,0.00024999,2]
[336991399,1725291038761,-830.09644229,0.00024999,2]
[336991400,1725291038771,-500.0,0.00024999,2]
[336991401,1725291038781,-500.0,0.00024999,2]
[336991402,1725291038791,-441.16281248,0.00024999,2]
[336991403,1725291038800,-830.09644229,0.00024999,2]
[336991404,1725291038811,-512.12158342,0.00024999,2]
[336991405,1725291038822,-830.09644229,0.00024999,2]
[336991406,1725291038832,-500.0,0.00024999,2]
[336991407,1725291038841,-830.09644229,0.00024999,2]
[336991408,1725291038851,-830.09644229,0.00024999,2]
[336991409,1725291038865,-830.09644229,0.00024999,2]
[336991410,1725291038875,-830.09644229,0.00024999,2]
[336991411,1725291038884,-830.09644229,0.00024999,2]
[336991412,1725291038894,-830.09644229,0.00024999,2]
[336991413,1725291038904,-830.09644229,0.00024999,2]
[336991414,1725291038916,-830.09644229,0.00024999,2]
[336991415,1725291038927,-830.09644229,0.00024999,2]
[336991416,1725291038945,-830.09644229,0.00024999,2]
[336991417,1725291038963,-830.09644229,0.00024999,2]
[336991418,1725291038973,-830.09644229,0.00024999,2]
[336991419,1725291038984,-830.09644229,0.00024999,2]
[336991420,1725291038997,-830.09644229,0.00024999,2]
[336991421,1725291039007,-830.09644229,0.00024999,2]
[336991422,1725291039019,-830.09644229,0.00024999,2]
[336991423,1725291039029,-830.09644229,0.00024999,2]
[336991424,1725291039040,-830.09644229,0.00024999,2]
[336991425,1725291039223,-830.09644229,0.00024999,2]
[336991426,1725291039233,-830.09644229,0.00024999,2]
[336991427,1725291039243,-830.09644229,0.00024999,2]
[336991428,1725291039253,-830.09644229,0.00024999,2]
[336991429,1725291039263,-830.09644229,0.00024999,2]
[336991430,1725291039273,-830.09644229,0.00024999,2]
[336991431,1725291039282,-830.09644229,0.00024999,2]
[336991432,1725291039292,-830.09644229,0.00024999,2]
[336991433,1725291039301,-830.09644229,0.00024999,2]
[336991434,1725291039311,-830.09644229,0.00024999,2]
[336991435,1725291039321,-830.09644229,0.00024999,2]
[336991436,1725291039330,-830.09644229,0.00024999,2]
[336991437,1725291039341,-830.09644229,0.00024999,2]
[336991438,1725291039351,-830.09644229,0.00024999,2]
[336991439,1725291039362,-830.09644229,0.00024999,2]
[336991440,1725291039373,-830.09644229,0.00024999,2]
[336991441,1725291039384,-830.09644229,0.00024999,2]
[336991442,1725291039395,-830.09644229,0.00024999,2]
[336991443,1725291039405,-830.09644229,0.00024999,2]
[336991444,1725291039414,-830.09644229,0.00024999,2]
[336991445,1725291039423,-830.09644229,0.00024999,2]
[336991446,1725291039433,-830.09644229,0.00024999,2]
[336991447,1725291039444,-27988.79098778,0.00025,2]
[336991448,1725291039460,-227.49,0.00025353,3]
[336991449,1725291039469,-682.49,0.00025353,3]
[336991450,1725291039478,-37081.26,0.00025353,3]
[336991451,1725291039487,-31181.51,0.00025363,3]
[336991452,1725291039496,-44497.51,0.00025363,3]
[336991453,1725291039505,-3000.0,0.000254,2]
[336991454,1725291039519,-3000.0,0.0002541,2]
[336991455,1725291039528,-3000.0,0.0002542,2]
[336991456,1725291039538,-3000.0,0.0002543,2]
[336991457,1725291039548,-3000.0,0.0002544,2]
[336991458,1725291039557,-3000.0,0.0002545,2]
[336991459,1725291039567,-3000.0,0.0002546,2]
[336991460,1725291039577,-900.0,0.00025469,3]
[336991461,1725291039589,-3000.0,0.0002547,2]
[336991462,1725291039599,-500.0,0.00025479,2]
[336991463,1725291039610,-500.0,0.00025479,2]
[336991464,1725291039623,-500.0,0.00025479,2]
[336991465,1725291039636,-3000.0,0.0002548,2]
[336991466,1725291039646,-3000.0,0.0002549,2]
[336991467,1725291039656,-3000.0,0.000255,2]
[336991468,1725291039666,-3000.0,0.0002551,2]
[336991469,1725291039676,-3000.0,0.0002552,2]
[336991470,1725291039688,-3000.0,0.0002553,2]
[336991471,1725291039699,-3000.0,0.0002554,2]
[336991472,1725291039712,-3000.0,0.0002555,2]
[336991473,1725291039724,-3000.0,0.0002556,2]
[336991474,1725291039735,-3000.0,0.0002557,2]
[336991475,1725291039747,-3000.0,0.0002558,2]
[336991476,1725291039756,-3000.0,0.0002559,2]
[336991477,1725291039766,-3000.0,0.000256,2]
[336991478,1725291039776,-500.0,0.00025616,2]
[336991479,1725291039785,-576.66459602,0.00025616,2]
[336991480,1725291039795,-266.89527363,0.0002589,2]
[336991481,1725291039805,-523.56882619,0.00026,2]
[336991482,1725291039815,-454.98,0.00026723,3]
[336991483,1725291039824,-1488.61481086,0.000298,3]
[336991484,1725291039834,-502.90049617,0.00034848,2]
[336991485,1725291039843,-174.86315301,0.00034848,2]
[336991486,1725291039855,-2502.16680083,0.00034999,3]
[336991487,1725291039864,-186.57798,0.000354,2]
[336991488,1725291039874,-223.981052,0.000365,6]
[336991489,1725291039884,-500.01522806,0.00038,2]
[336991490,1725291039895,-150.112233,0.000383,5]
[336991491,1725291039904,-158.481833,0.00039452,2]
[336991492,1725291039914,-182.515992,0.00039452,2]
[336991494,1725291039924,-150.112233,0.000401,6]
[336991495,1725291039933,-150.112233,0.00041,14]
[336991496,1725291039949,-500.0,0.00041095,120]
[336991497,1725291039961,-500.0,0.00041095,120]
[336991498,1725291039974,-500.0,0.00041095,120]
[336991499,1725291039986,-500.0,0.00041095,120]
[336991500,1725291039998,-500.0,0.00041095,120]
[336991501,1725291040008,-500.0,0.00041095,120]
[336991502,1725291040021,-500.0,0.00041095,120]
[336991503,1725291040032,-500.0,0.00041095,120]
[336991504,1725291040041,-307.05119466,0.00041095,120]